bitfinex/quotes_ETHUSD_20250520
["timestamp","ask_amount","ask_price","bid_price","bid_amount"]
[1747706118551,3.92973631,2544.7,2544.6,8.0]
[1747706118754,3.97951634,2544.9,2544.7,8.0]
[1747706118952,0.05,2544.9,2544.8,0.7637]
[1747706120042,0.05,2544.9,2544.8,1.13065955]
[1747706120223,0.05,2544.9,2544.8,2.82715785]
[1747706120657,0.05,2544.9,2544.8,11.22011177]
[1747706121156,3.97942748,2544.9,2544.8,11.22011177]
[1747706121357,3.97942748,2544.9,2544.8,9.52361347]
[1747706121557,3.97942748,2544.9,2544.8,8.36695955]
[1747706121924,3.97942748,2544.9,2544.8,16.14195955]
[1747706122126,3.97942748,2544.9,2544.8,8.14195955]
[1747706122832,3.97942748,2544.9,2544.8,8.14095955]
[1747706123761,3.97942748,2544.9,2544.8,7.774]
[1747706125365,3.92973631,2544.7,2544.6,0.05932348]
[1747706125608,3.92973631,2544.7,2544.6,7.83332348]
[1747706127231,3.92973631,2544.7,2544.6,9.41665583]
[1747706127427,3.92973631,2544.7,2544.6,7.83332348]
[1747706128935,3.92964279,2544.8,2544.6,8.63172348]
[1747706129137,3.92965897,2544.8,2544.6,8.63172348]
[1747706129559,3.92973631,2544.7,2544.6,7.83332348]
[1747706129901,3.92973631,2544.7,2544.6,0.05932348]
[1747706130068,3.92973631,2544.7,2544.6,7.83332348]
[1747706131093,3.92973631,2544.7,2544.6,0.05932348]
[1747706131394,14.21702511,2544.7,2544.6,0.05932348]
[1747706133066,12.68903631,2544.7,2544.6,0.05932348]
[1747706133780,3.93143576,2543.6,2543.5,17.36042927]
[1747706134089,3.93123883,2543.8,2543.5,24.741]
[1747706134303,3.93085199,2544.0,2543.6,0.86950598]
[1747706134598,3.93099613,2543.9,2543.7,0.7755]
[1747706134981,12.71252352,2544.4,2543.7,0.7755]
[1747706134982,3.93112666,2543.8,2543.7,0.82798178]
[1747706135193,3.93112666,2543.8,2543.7,0.05248178]
[1747706135882,3.93112666,2543.8,2543.7,7.82748178]
[1747706138460,3.93112666,2543.8,2543.7,0.05248178]
[1747706138661,3.93112666,2543.8,2543.7,7.82848178]
[1747706143304,0.05,2544.9,2543.7,11.11722996]
[1747706143502,0.8285,2544.5,2543.7,11.11722996]
[1747706143798,3.93097212,2543.9,2543.8,0.05247971]
[1747706144393,3.93097212,2543.9,2543.8,7.82047971]
[1747706144603,3.93097212,2543.9,2543.8,0.05247971]
[1747706144794,3.93097212,2543.9,2543.8,7.82047971]
[1747706145618,3.9308619,2544.0,2543.8,7.82047971]
[1747706146103,3.93097212,2543.9,2543.8,7.82047971]
[1747706147209,3.93089013,2544.0,2543.8,8.67752768]
[1747706147517,3.93097212,2543.9,2543.8,8.67752768]
[1747706147686,3.93097212,2543.9,2543.8,7.82047971]
[1747706149875,3.93089073,2544.0,2543.8,7.82047971]
[1747706150397,3.93097212,2543.9,2543.8,7.82047971]
[1747706151908,4.74187212,2543.9,2543.8,7.82047971]
[1747706152301,4.74187212,2543.9,2543.8,0.05247971]
[1747706156085,6.26986092,2543.9,2543.8,0.05247971]
[1747706156523,6.81986092,2543.9,2543.8,0.05247971]
[1747706156829,6.26986092,2543.9,2543.8,0.05247971]
[1747706158693,6.81986092,2543.9,2543.8,0.05247971]
[1747706160830,5.29187212,2543.9,2543.8,0.05247971]
[1747706162104,13.29187212,2543.9,2543.8,0.05247971]
[1747706164218,3.93298198,2542.6,2542.5,16.971]
[1747706164534,3.93298198,2542.6,2542.5,24.741]
[1747706164710,3.93344609,2542.3,2542.0,9.21339761]
[1747706164893,3.93344609,2542.3,2542.0,8.38449761]
[1747706165495,5.46143489,2542.3,2542.0,0.61349761]
[1747706165690,3.93344609,2542.3,2542.0,0.61349761]
[1747706165995,3.93344609,2542.3,2541.8,0.7926]
[1747706166214,3.93360081,2542.2,2541.8,0.7926]
[1747706166821,3.93360081,2542.2,2542.0,7.771]
[1747706168734,3.93360081,2542.2,2542.1,0.8796]
[1747706168933,3.93360081,2542.2,2542.1,9.74466]
[1747706169122,3.93360081,2542.2,2542.1,8.8796]
[1747706169322,3.93360081,2542.2,2542.1,8.05]
[1747706172440,3.9335472,2542.3,2542.2,0.8027]
[1747706172759,3.93324615,2542.5,2542.2,0.8027]
[1747706172760,3.93335909,2542.4,2542.2,0.8027]
[1747706172959,3.93341934,2542.4,2542.2,10.46507]
[1747706173266,3.93272835,2542.8,2542.2,2.46507]
[1747706173558,3.93309036,2542.6,2542.2,1.66237]
[1747706173762,3.93315084,2542.5,2542.3,0.7907]
[1747706173964,3.93329137,2542.4,2542.3,0.7907]
[1747706175236,3.93319996,2542.5,2542.4,8.0]
[1747706175572,3.93302745,2542.6,2542.4,9.65547]
[1747706175741,3.93313667,2542.5,2542.4,9.65547]
[1747706176268,3.93313667,2542.5,2542.4,8.0]
[1747706179950,0.816,2544.1,2542.6,8.0]
[1747706180150,3.93112105,2543.9,2542.9,0.7758]
[1747706180353,3.93189379,2543.4,2543.1,8.0]
[1747706180710,3.93189379,2543.4,2543.2,1.5764]
[1747706180711,3.9318995,2543.3,2543.2,1.5764]
[1747706180837,3.93180981,2543.4,2543.2,1.5764]
[1747706181165,3.93163656,2543.5,2543.3,0.789]
[1747706182778,3.93129627,2543.7,2543.4,0.8323]
[1747706182779,3.93129468,2543.7,2543.4,0.8323]
[1747706183077,3.93110984,2543.9,2543.6,0.8323]
[1747706183276,3.93053099,2544.2,2543.7,17.8103]
[1747706183569,3.93053099,2544.2,2543.8,0.8158]
[1747706183874,0.7791,2544.5,2543.8,0.8158]
[1747706184063,3.93081761,2544.0,2543.9,15.763]
[1747706184848,3.93081761,2544.0,2543.9,8.0]
[1747706185053,3.93112666,2543.8,2543.7,25.0173991]
[1747706185368,3.93112666,2543.8,2543.7,32.7803991]
[1747706185673,3.93112666,2543.8,2543.7,32.7793991]
[1747706185905,3.93112666,2543.8,2543.7,24.7793991]
[1747706186068,3.93112666,2543.8,2543.7,17.0173991]
[1747706191818,4.76432666,2543.8,2543.7,0.0393991]
[1747706193310,3.93112666,2543.8,2543.7,0.0393991]
[1747706194605,7.87030089,2543.8,2543.7,0.0393991]
[1747706195110,3.93112666,2543.8,2543.7,0.0393991]
[1747706197376,3.93112666,2543.8,2543.7,0.8409991]
[1747706201329,3.93112666,2543.8,2543.7,0.0393991]
[1747706208574,3.93112666,2543.8,2543.7,0.7945991]
[1747706208865,3.93112666,2543.8,2543.7,7.7923991]
[1747706211656,3.93112666,2543.8,2543.7,0.0393991]
[1747706212959,4.72552666,2543.8,2543.7,0.0393991]
[1747706215062,5.27552666,2543.8,2543.7,0.0393991]
[1747706217085,4.72552666,2543.8,2543.7,0.0393991]
[1747706217945,3.93112666,2543.8,2543.7,0.0393991]
[1747706222180,3.93112666,2543.8,2543.7,0.8046991]
[1747706222347,3.93112666,2543.8,2543.7,1.68516901]
[1747706224600,3.93095672,2544.0,2543.8,0.7653]
[1747706224825,3.93095672,2544.0,2543.9,8.5193]
[1747706224990,3.93095672,2544.0,2543.9,16.5193]
[1747706225176,3.93095672,2544.0,2543.9,18.30003066]
[1747706226292,11.1646,2545.0,2544.0,8.0]
[1747706226597,11.1646,2545.0,2544.1,0.8185]
[1747706226598,3.9305086,2544.2,2544.1,0.8185]
[1747706226795,3.93047181,2544.3,2544.1,0.8185]
[1747706227011,3.9305086,2544.2,2544.1,0.8185]
[1747706227291,3.9305086,2544.2,2544.1,2.23771153]
[1747706227712,3.93041563,2544.3,2544.1,2.23771153]
[1747706227933,3.93016741,2544.5,2544.1,1.41921153]
[1747706228132,0.05,2544.9,2544.3,8.0]
[1747706228302,0.05,2544.9,2544.6,0.7556]
[1747706228504,3.92958304,2544.8,2544.6,0.7556]
[1747706229004,0.05,2544.9,2544.6,0.7556]
[1747706229195,0.05,2544.9,2544.8,8.7799]
[1747706229395,0.05,2544.9,2544.8,13.59140115]
[1747706229903,0.05,2544.9,2544.8,32.13699277]
[1747706230231,0.005,2545.4,2545.3,11.92880996]
[1747706230411,0.005,2545.4,2545.3,20.45970996]
[1747706230841,0.005,2545.4,2545.3,41.42573396]
[1747706231028,0.005,2545.4,2545.3,23.7049587]
[1747706231216,0.005,2545.4,2545.3,27.31826766]
[1747706231773,0.005,2545.4,2545.3,27.68591428]
[1747706232463,0.005,2545.4,2545.3,23.75710432]
[1747706232751,0.005,2545.4,2545.3,13.24573932]
[1747706232956,0.005,2545.4,2545.3,9.14754662]
[1747706233114,3.93365561,2545.4,2545.3,8.7799]
[1747706233311,3.92921673,2545.1,2545.0,0.8055]
[1747706233538,3.92880996,2545.3,2545.0,0.8055]
[1747706233736,0.005,2545.4,2545.1,7.741]
[1747706234003,3.92908768,2545.2,2545.1,7.741]
[1747706234214,3.92908768,2545.2,2545.1,8.64181041]
[1747706234614,3.93379078,2545.4,2545.1,8.64181041]
[1747706234615,3.92885682,2545.3,2545.1,8.64181041]
[1747706235343,3.92891621,2545.3,2545.1,8.64181041]
[1747706235840,3.92889814,2545.3,2545.1,16.64181041]
[1747706236057,3.92880996,2545.3,2545.2,0.7611]
[1747706237146,3.92880996,2545.3,2545.2,8.7611]
[1747706237322,3.92880996,2545.3,2545.2,10.52954339]
[1747706238066,3.92880996,2545.3,2545.2,10.50139104]
[1747706238271,3.92880996,2545.3,2545.2,10.52953765]
[1747706238578,3.92880996,2545.3,2545.2,10.50139104]
[1747706238735,3.93369507,2545.4,2545.2,10.50139104]
[1747706239075,0.005,2545.4,2545.3,9.91432015]
[1747706239370,0.005,2545.4,2545.3,24.07244015]
[1747706239550,0.005,2545.4,2545.3,27.37223811]
[1747706239753,0.005,2545.4,2545.3,17.66972615]
[1747706240224,0.005,2545.4,2545.3,21.59853611]
[1747706240757,0.005,2545.4,2545.3,22.14853611]
[1747706240958,0.005,2545.4,2545.3,22.15832332]
[1747706241338,3.93365561,2545.4,2545.3,10.75570736]
[1747706241539,0.005,2545.4,2545.3,32.93752936]
[1747706241851,0.005,2545.4,2545.3,38.73574732]
[1747706242026,0.005,2545.4,2545.3,39.33574732]
[1747706243366,0.05,2545.9,2545.8,9.3443]
[1747706243660,0.05,2545.9,2545.8,42.87523429]
[1747706243861,0.05,2545.9,2545.8,33.50608529]
[1747706244073,0.05,2545.9,2545.8,44.65285462]
[1747706244432,0.05,2545.9,2545.8,42.36188862]
[1747706244763,0.05,2545.9,2545.8,40.422162]
[1747706244969,0.05,2545.9,2545.8,45.08200733]
[1747706245177,0.05,2545.9,2545.8,45.63200733]
[1747706245989,0.05,2545.9,2545.8,45.62222204]
[1747706247248,0.05,2545.9,2545.8,46.22222204]
[1747706248666,0.05,2546.9,2546.3,8.8198]
[1747706248868,3.92649599,2546.8,2546.5,8.0]
[1747706249079,3.92668282,2546.7,2546.5,8.0]
[1747706249367,3.92666132,2546.7,2546.5,8.0]
[1747706249697,0.05,2546.9,2546.5,8.0]
[1747706249852,3.92669058,2546.7,2546.6,0.00939158]
[1747706250186,3.97643324,2546.9,2546.6,0.00939158]
[1747706250349,3.92650801,2546.8,2546.6,0.00939158]
[1747706250552,3.92665017,2546.7,2546.6,0.00939158]
[1747706251285,3.92665017,2546.7,2546.6,15.74739158]
[1747706252552,3.92665017,2546.7,2546.6,15.74639158]
[1747706253297,0.05,2546.9,2546.8,8.8291]
[1747706253509,0.05,2546.9,2546.8,28.905031]
[1747706253807,0.05,2546.9,2546.8,29.287708]
[1747706254019,0.05,2546.9,2546.8,29.18741]
[1747706254166,0.05,2546.9,2546.8,36.92441]
[1747706254361,0.05,2546.9,2546.8,45.49909869]
[1747706254563,0.05,2547.9,2547.1,0.55]
[1747706254864,3.9253719,2547.6,2547.3,8.8035]
[1747706255062,3.92552034,2547.5,2547.3,8.8035]
[1747706255288,3.92556752,2547.5,2547.3,8.8035]
[1747706255485,3.92557117,2547.4,2547.3,10.45745]
[1747706255676,3.92557117,2547.4,2547.3,2.45745]
[1747706255864,3.92535073,2547.6,2547.3,8.5395]
[1747706256088,3.9254194,2547.5,2547.3,8.5395]
[1747706256261,3.92507456,2547.8,2547.5,8.0]
[1747706256465,0.05,2547.9,2547.7,8.0]
[1747706256661,0.05,2547.9,2547.8,15.736]
[1747706256662,3.97480081,2547.9,2547.8,15.736]
[1747706256904,3.97480081,2547.9,2547.8,8.0]
[1747706257067,4.76474575,2547.9,2547.8,15.74538716]
[1747706257266,3.97480081,2547.9,2547.8,15.74538716]
[1747706257463,4.76700081,2547.9,2547.8,0.00938716]
[1747706258704,0.05,2547.9,2547.8,26.13695708]
[1747706258889,0.05,2547.9,2547.8,25.74398716]
[1747706259090,0.05,2547.9,2547.8,30.01118216]
[1747706259305,0.05,2547.9,2547.8,37.71075524]
[1747706259800,0.05,2547.9,2547.8,44.54365319]
[1747706260203,0.05,2547.9,2547.8,44.90673661]
[1747706262095,0.05,2547.9,2547.8,39.02173661]
[1747706262283,0.05,2547.9,2547.8,30.27958675]
[1747706262481,0.05,2547.9,2547.8,38.01258675]
[1747706262681,3.97480081,2547.9,2547.8,22.27958675]
[1747706262911,0.05,2547.9,2547.8,26.23796853]
[1747706263108,0.05,2547.9,2547.8,17.72136853]
[1747706263317,3.97480081,2547.9,2547.8,25.45336853]
[1747706263515,3.97480081,2547.9,2547.8,33.45336853]
[1747706263917,3.97480081,2547.9,2547.8,25.53036853]
[1747706264121,3.97480081,2547.9,2547.8,17.72136853]
[1747706264321,3.97480081,2547.9,2547.8,25.53036853]
[1747706264481,3.97480081,2547.9,2547.8,25.16728511]
[1747706264830,4.84789566,2547.9,2547.8,24.76938716]
[1747706265025,4.84789566,2547.9,2547.8,16.96038716]
[1747706265219,5.65869566,2547.9,2547.8,16.96038716]
[1747706265820,5.65869566,2547.9,2547.8,0.00938716]
[1747706265986,0.05,2547.9,2547.8,0.00938716]
[1747706266636,0.05,2547.9,2547.8,15.81838716]
[1747706266985,3.97480081,2547.9,2547.8,15.81838716]
[1747706267193,0.05,2547.9,2547.8,19.12315716]
[1747706267394,0.05,2547.9,2547.8,18.98482716]
[1747706267688,0.05,2547.9,2547.8,20.64600988]
[1747706267888,0.05,2547.9,2547.8,24.93149474]
[1747706268139,0.05,2547.9,2547.8,21.00653988]
[1747706268500,0.05,2547.9,2547.8,21.36962934]
[1747706268904,0.05,2547.9,2547.8,18.07995934]
[1747706269112,0.05,2547.9,2547.8,21.89312934]
[1747706269593,0.05,2547.9,2547.8,18.67995934]
[1747706270525,0.05,2547.9,2547.8,10.87095934]
[1747706270731,0.05,2547.9,2547.8,16.41838716]
[1747706271617,0.05,2547.9,2547.8,8.60938716]
[1747706271817,0.05,2547.9,2547.8,16.41838716]
[1747706272546,0.05,2547.9,2547.8,16.41738716]
[1747706273305,3.97480081,2547.9,2547.8,16.41738716]
[1747706273504,0.05,2547.9,2547.8,17.46434038]
[1747706273704,0.05,2547.9,2547.8,9.46434038]
[1747706274136,3.97480081,2547.9,2547.8,9.46434038]
[1747706274439,0.05,2547.9,2547.8,8.78170635]
[1747706274805,0.05,2547.9,2547.8,8.41738716]
[1747706275008,0.05,2547.9,2547.8,16.41738716]
[1747706275640,0.05,2547.9,2547.8,8.60938716]
[1747706275840,0.05,2547.9,2547.8,17.27832588]
[1747706276803,0.05,2547.9,2547.8,9.47032588]
[1747706277040,3.97480081,2547.9,2547.8,8.60938716]
[1747706277244,3.97480081,2547.9,2547.8,15.81738716]
[1747706277446,3.97480081,2547.9,2547.8,8.00938716]
[1747706277745,3.97480081,2547.9,2547.8,15.81738716]
[1747706278110,0.05,2547.9,2547.8,15.81738716]
[1747706278849,3.97480081,2547.9,2547.8,0.00938716]
[1747706279049,5.14076887,2547.9,2547.8,7.81738716]
[1747706279352,5.14076887,2547.9,2547.8,0.00938716]
[1747706283323,4.74330081,2547.9,2547.8,0.00938716]
[1747706294302,5.29330081,2547.9,2547.8,0.00938716]
[1747706295101,4.74330081,2547.9,2547.8,0.00938716]
[1747706296156,14.78330081,2547.9,2547.8,0.00938716]
[1747706296466,15.33330081,2547.9,2547.8,0.00938716]
[1747706297765,19.46930081,2547.9,2547.8,0.00938716]
[1747706297971,4.74073352,2547.1,2547.0,1.527]
[1747706300660,7.91662014,2547.1,2547.0,1.527]
[1747706301106,4.74073352,2547.1,2547.0,1.527]
[1747706303726,3.92603352,2547.1,2547.0,1.527]
[1747706303875,3.92603352,2547.1,2547.0,2.3011]
[1747706304081,3.92603352,2547.1,2547.0,10.0771]
[1747706304717,3.92603352,2547.1,2547.0,9.303]
[1747706310539,3.92603352,2547.1,2547.0,1.527]
[1747706310735,4.70243352,2547.1,2547.0,1.527]
[1747706311036,3.92603352,2547.1,2547.0,1.527]
[1747706312836,4.78886637,2547.1,2547.0,1.527]
[1747706313396,5.60936637,2547.1,2547.0,1.527]
[1747706314704,6.15936637,2547.1,2547.0,1.527]
[1747706315134,5.60936637,2547.1,2547.0,1.527]
[1747706315636,6.15936637,2547.1,2547.0,1.527]
[1747706317147,16.19936637,2547.1,2547.0,1.527]
[1747706318848,24.19936637,2547.1,2547.0,1.20278921]
[1747706319148,3.9275755,2546.1,2546.0,7.777]
[1747706322574,4.7514755,2546.1,2546.0,7.777]
[1747706322775,3.92819263,2545.7,2545.6,16.5929]
[1747706323175,3.92819263,2545.7,2545.6,15.778]
[1747706323476,3.92819263,2545.7,2545.6,7.778]
[1747706323625,3.92850127,2545.5,2545.4,16.954]
[1747706324890,3.92880996,2545.3,2545.2,0.756]
[1747706325033,3.92880996,2545.3,2545.2,16.493]
[1747706325465,3.92896432,2545.2,2545.1,0.05939712]
[1747706328342,4.75116432,2545.2,2545.1,0.05939712]
[1747706328547,4.75116432,2545.2,2545.1,0.05]
[1747706330562,5.30116432,2545.2,2545.1,0.05]
[1747706331488,13.30116432,2545.2,2545.1,0.05]
[1747706333408,21.04116432,2545.2,2545.1,0.05]
[1747706334513,13.30116432,2545.2,2545.1,0.05]
[1747706336424,23.34116432,2545.2,2545.1,0.05]
[1747706337108,13.96896432,2545.2,2545.1,0.05]
[1747706340045,26.48035094,2545.2,2545.1,0.05]
[1747706340810,23.30446432,2545.2,2545.1,0.05]
[1747706343727,15.30446432,2545.2,2545.1,0.05]
[1747706344031,13.96896432,2545.2,2545.1,0.05]
[1747706345041,10.04,2545.2,2545.1,0.05]
[1747706345929,13.96896432,2545.2,2545.1,0.05]
[1747706352956,14.51896432,2545.2,2545.1,0.05]
[1747706353165,15.34076432,2545.2,2545.1,0.05]
[1747706357857,16.86902474,2545.2,2545.1,0.05]
[1747706358527,24.86902474,2545.2,2545.1,0.05]
[1747706358728,26.39728516,2545.2,2545.1,0.05]
[1747706358926,26.39728516,2545.2,2544.1,0.05]
[1747706358927,3.9305086,2544.2,2544.1,0.05]
[1747706359174,6.77666902,2544.2,2544.1,0.05]
[1747706359678,16.30492944,2544.2,2544.1,0.05]
[1747706359827,5.28869032,2543.5,2543.4,0.45777537]
[1747706360171,6.81695074,2543.5,2543.4,0.45777537]
[1747706360329,14.81695074,2543.5,2543.4,0.45777537]
[1747706361685,16.4727238,2543.5,2543.4,0.09977537]
[1747706361858,0.55,2543.2,2542.2,0.8024]
[1747706362064,3.93329453,2542.4,2542.1,0.05]
[1747706362275,3.93344609,2542.3,2542.2,0.32837015]
[1747706363458,4.48344609,2542.3,2542.2,0.32837015]
[1747706363658,12.48344609,2542.3,2542.2,0.32837015]
[1747706363995,12.22244609,2542.3,2542.2,0.32837015]
[1747706364895,24.61293426,2542.3,2542.2,0.32837015]
[1747706366095,3.93514874,2541.2,2541.1,0.05]
[1747706367309,4.26326011,2541.2,2541.1,0.05]
[1747706375076,4.81326011,2541.2,2541.1,0.05]
[1747706375441,7.99729359,2541.2,2541.1,0.05]
[1747706376275,8.78279359,2541.2,2541.1,0.05]
[1747706378721,5.59876011,2541.2,2541.1,0.05]
[1747706383114,4.26326011,2541.2,2541.1,0.05]
[1747706386025,4.81326011,2541.2,2541.1,0.05]
[1747706388192,16.75219359,2541.2,2541.1,0.05]
[1747706388392,3.93669789,2540.2,2540.1,0.05]
[1747706391927,4.48669789,2540.2,2540.1,0.05]
[1747706392295,5.69644752,2540.2,2540.1,0.05]
[1747706392701,8.880481,2540.2,2540.1,0.05]
[1747706394095,16.880481,2540.2,2540.1,0.05]
[1747706395395,13.69644752,2540.2,2540.1,0.05]
[1747706396865,12.88514752,2540.2,2540.1,0.05]
[1747706397074,4.88514752,2540.2,2540.1,0.05]
[1747706397239,18.53214752,2540.2,2540.1,0.05]
[1747706397736,17.58369789,2540.2,2540.1,0.05]
[1747706397922,3.93669789,2540.2,2540.1,0.05]
[1747706398121,9.83869789,2540.2,2540.1,0.05]
[1747706398322,3.93669789,2540.2,2540.1,0.05]
[1747706400546,3.93669789,2540.2,2540.1,0.8296]
[1747706402362,3.93669789,2540.2,2540.1,16.5746]
[1747706403670,17.001,2541.4,2540.2,8.8246]
[1747706403886,3.93552075,2541.0,2540.3,0.8246]
[1747706404176,3.9359327,2540.7,2540.6,0.7621]
[1747706404386,3.93654292,2540.3,2540.2,17.0]
[1747706404679,3.93654292,2540.3,2540.2,0.7636]
[1747706407747,3.93635689,2540.5,2540.2,0.7636]
[1747706408081,3.9363912,2540.4,2540.2,0.7636]
[1747706408280,3.93630246,2540.5,2540.4,0.7636]
[1747706410278,3.93613778,2540.6,2540.4,0.7636]
[1747706410784,4.26328935,2541.2,2540.4,0.7636]
[1747706410953,3.93601104,2540.7,2540.6,0.7636]
[1747706411159,3.93601104,2540.7,2540.6,8.5076]
[1747706412907,3.93576826,2540.8,2540.7,0.8141]
[1747706413073,3.93576826,2540.8,2540.7,1.7451246]
[1747706413272,3.93568634,2540.9,2540.7,0.9310246]
[1747706413593,0.32811137,2541.2,2540.7,0.9310246]
[1747706413594,0.32811137,2541.2,2540.8,0.8141]
[1747706413795,3.93549321,2541.0,2540.8,0.8141]
[1747706414308,0.32811137,2541.2,2540.8,0.8141]
[1747706414472,3.93561336,2540.9,2540.8,0.8141]
[1747706414801,3.93561336,2540.9,2540.8,1.76301246]
[1747706415389,0.32811137,2541.2,2540.9,0.8141]
[1747706415693,4.26337644,2541.2,2540.9,0.8141]
[1747706415996,0.32811137,2541.1,2540.9,0.8141]
[1747706416205,3.93545848,2541.0,2540.9,0.8141]
[1747706416366,4.26356985,2541.0,2540.9,8.5571]
[1747706416696,4.26356985,2541.0,2540.9,9.50770125]
[1747706416996,0.32811137,2541.0,2540.9,9.50770125]
[1747706419501,0.32811137,2541.0,2540.9,17.50770125]
[1747706419707,0.32811137,2541.0,2540.9,18.05770125]
[1747706420503,0.32811137,2541.0,2540.9,24.79788325]
[1747706420705,0.32811137,2541.0,2540.9,21.14170125]
[1747706421000,0.32811137,2541.0,2540.9,25.07731461]
[1747706421714,0.32811137,2541.0,2540.9,29.24931461]
[1747706422013,0.3237537,2541.0,2540.9,29.24931461]
[1747706422780,0.3237537,2541.0,2540.9,17.57070125]
[1747706422997,0.27140201,2541.0,2540.9,34.26376461]
[1747706423310,0.27140201,2541.0,2540.9,30.32815125]
[1747706423513,0.27140201,2541.0,2540.9,22.22070125]
[1747706424211,3.93421984,2541.8,2541.0,8.0]
[1747706424411,3.93514564,2541.3,2541.0,10.31696137]
[1747706424578,3.93514564,2541.3,2541.1,0.769]
[1747706424778,3.93514874,2541.2,2541.1,0.769]
[1747706425511,4.262486,2541.7,2541.1,0.769]
[1747706425512,3.93486075,2541.4,2541.1,0.769]
[1747706425816,3.93514874,2541.2,2541.1,0.769]
[1747706426013,3.93514874,2541.2,2540.9,13.40660125]
[1747706426014,3.93500924,2541.3,2540.9,5.89160125]
[1747706426212,3.93500924,2541.3,2540.9,0.769]
[1747706426213,3.93545848,2541.0,2540.9,0.769]
[1747706426423,3.93545848,2541.0,2540.9,8.502]
[1747706427826,3.93502434,2541.3,2540.9,8.502]
[1747706428026,3.93540479,2541.1,2541.0,0.7715]
[1747706428328,3.93540479,2541.1,2541.0,16.5045]
[1747706428897,3.93519702,2541.2,2541.0,18.15495]
[1747706429400,3.93503884,2541.3,2541.0,18.15495]
[1747706429729,3.93517992,2541.2,2541.0,18.15495]
[1747706430187,3.9353036,2541.1,2541.0,18.15495]
[1747706432126,3.9353036,2541.1,2541.0,10.15495]
[1747706432330,3.9353036,2541.1,2541.0,7.733]
[1747706434726,4.6948036,2541.1,2541.0,7.733]
[1747706434935,3.93623302,2540.5,2540.4,16.997]
[1747706435136,3.93623302,2540.5,2540.4,24.73]
[1747706436845,4.76333302,2540.5,2540.4,16.997]
[1747706437358,4.76333302,2540.5,2540.3,0.4574519]
[1747706437359,3.93638797,2540.4,2540.3,0.4574519]
[1747706437771,3.93669789,2540.2,2540.1,0.05]
[1747706439090,3.93685287,2540.1,2539.7,7.734]
[1747706439876,3.93685287,2540.1,2539.6,24.724]
[1747706440602,4.76155287,2540.1,2539.4,0.4574519]
[1747706441164,4.67953733,2540.1,2539.3,7.735]
[1747706441661,4.67953733,2540.1,2539.1,0.05]
[1747706441895,5.22953733,2540.1,2539.1,0.05]
[1747706442570,13.22953733,2540.1,2539.1,0.05]
[1747706445194,13.22953733,2540.1,2540.0,87.1667]
[1747706445770,13.5576487,2540.1,2540.0,87.1667]
[1747706446575,27.1946487,2540.1,2540.0,87.1667]
[1747706447178,18.9096487,2540.1,2540.0,87.1667]
[1747706447692,13.5576487,2540.1,2540.0,87.1667]
[1747706447913,19.4596487,2540.1,2540.0,87.1667]
[1747706448208,29.4496487,2540.1,2540.0,87.1667]
[1747706448775,23.5476487,2540.1,2540.0,87.1667]
[1747706449077,37.1826487,2540.1,2540.0,87.1667]
[1747706449508,23.5476487,2540.1,2540.0,87.1667]
[1747706449804,37.1826487,2540.1,2540.0,87.1667]
[1747706450011,28.6326487,2540.1,2540.0,87.1667]
[1747706451005,28.6326487,2540.1,2540.0,87.0187]
[1747706451006,14.9976487,2540.1,2540.0,87.0187]
[1747706451207,28.6336487,2540.1,2540.0,87.0187]
[1747706452106,20.9006487,2540.1,2540.0,87.0187]
[1747706454503,10.9106487,2540.1,2540.0,87.0187]
[1747706456235,4.1829487,2540.1,2540.0,87.0187]
[1747706457897,4.17113791,2540.1,2540.0,87.0187]
[1747706459640,4.17113791,2540.1,2540.0,91.9068927]
[1747706459996,4.17113791,2540.1,2540.0,87.0187]
[1747706465238,4.17113791,2540.1,2540.0,87.8514]
[1747706473532,0.32811137,2540.1,2540.0,95.8514]
[1747706473748,4.26496424,2540.1,2540.0,95.8514]
[1747706475558,0.32811137,2540.1,2540.0,95.8514]
[1747706475762,0.32811137,2540.1,2540.0,99.9495927]
[1747706476167,0.32811137,2540.1,2540.0,113.66671057]
[1747706476321,0.32811137,2540.1,2540.0,114.03524117]
[1747706476718,3.93557442,2541.0,2540.4,3.93635531]
[1747706476987,4.26362243,2541.0,2540.6,0.7999]
[1747706477270,4.26362243,2541.0,2540.8,0.8033]
[1747706477668,0.32811137,2541.0,2540.8,0.8033]
[1747706477972,0.32811137,2541.0,2540.9,0.55]
[1747706478116,0.32811137,2541.0,2540.9,1.3533]
[1747706478323,0.32811137,2541.0,2540.9,9.712969]
[1747706478855,0.32811137,2541.0,2540.9,10.10562576]
[1747706479157,3.93498278,2541.4,2541.1,0.8243]
[1747706479342,3.93498278,2541.4,2541.3,8.8243]
[1747706479543,3.93483906,2541.4,2541.3,8.8243]
[1747706479852,3.93477053,2541.5,2541.3,11.06963]
[1747706480155,3.93483906,2541.4,2541.3,11.06963]
[1747706480732,3.93474988,2541.5,2541.3,11.06963]
[1747706481145,3.93443716,2541.7,2541.4,0.8145]
[1747706481485,3.93468424,2541.5,2541.4,0.8145]
[1747706481633,3.93468424,2541.5,2541.4,3.283383]
[1747706481966,3.93468424,2541.5,2541.4,0.8145]
[1747706482148,3.9353036,2541.1,2541.0,0.769]
[1747706482348,3.9353036,2541.1,2541.0,8.493]
[1747706482770,3.93561336,2540.9,2540.8,17.767]
[1747706482974,3.93561336,2540.9,2540.8,25.491]
[1747706483166,3.93561336,2540.9,2540.8,33.491]
[1747706484672,3.93561336,2540.9,2540.8,25.767]
[1747706484871,3.93561336,2540.9,2540.8,16.998]
[1747706485435,3.93561336,2540.9,2540.8,28.2747]
[1747706485643,3.98420127,2541.9,2540.8,28.2747]
[1747706485843,3.93499941,2541.3,2541.0,0.7804]
[1747706486139,3.93490402,2541.4,2541.0,0.7804]
[1747706486378,3.93501381,2541.3,2541.2,8.7804]
[1747706486675,3.93501381,2541.3,2541.2,16.5044]
[1747706487042,0.05,2541.9,2541.2,16.5044]
[1747706487043,3.98411382,2541.9,2541.2,16.5044]
[1747706487274,0.05,2541.9,2541.3,0.7804]
[1747706487444,3.93468424,2541.5,2541.4,1.65044]
[1747706488381,3.93483906,2541.4,2541.3,0.7804]